[Event "XVII Profigaia Open 2017"]
[Site "Gaia"]
[Date "2017.06.17"]
[Round "6"]
[White "Pintor, Simao Maciel Abranc"]
[Black "Silva, Ana Ines Teixeira D"]
[Result "0-1"]
[ECO "A05"]
[WhiteElo "2022"]
[BlackElo "1775"]
[Annotator "NA"]
[PlyCount "88"]
[EventDate "2017.??.??"]
[EventType "swiss"]
[EventCountry "POR"]
[SourceTitle "playchess.com"]
[Source "ChessBase"]
[SourceQuality "1"]
[TimeControl "5400+30"]

{[%evp 8,83,25,-2,0,0,16,26,26,10,25,31,33,34,32767,32767,32,12,23,0,10,32767,32767,32767,32767,7,14,10,33,0,133,124,145,-108,-102,-129,-112,-133,-114,-120,-104,-127,32767,32767,-327,-409,-379,-426,-248,-597,-625,-1233,-379,-365,32767,-350,32767,32767,32767,32767,32767,-445,-406,-483,-443,-1695,-12795,-29981,-29983,-29984,-1695,32767,32767,-1487,-5385,-1344,-5381,-2261]} 1. Nf3 {[%emt 0:00:00]} Nf6 {[%emt 0:00:25]} 2. g3 {[%emt 0:21:45]} g6 {[%emt 0:00:21]} 3. b3 {[%emt 0:00:10]} Bg7 {[%emt 0:00:08]} 4. Bb2 {[%emt 0:00:08]} O-O {[%emt 0:00:35]} 5. Bg2 {[%emt 0:00:06]} d5 {[%emt 0:01:46]} 6. O-O {[%emt 0:00:45]} c6 {[%emt 0:00:23]} 7. c4 {[%emt 0:00:12]} Nbd7 {[%emt 0:01:43]} 8. d4 {[%emt 0:00:27]} b6 {[%emt 0:01:17]} 9. Nc3 {[%emt 0:00:18] D78: Fianchetto Grünfeld: 6 0-0 c6} Bb7 {[%emt 0:00:19]} 10. Qc2 {[%emt 0:01:52]} Rc8 {[%emt 0:02:31]} (10... e6 11. cxd5 exd5 12. Rfd1 Re8 13. e3 a5 14. Rac1 Rc8 15. Qb1 Ba6 {1-0 (61) Yu,Y (2734)-Nepomniachtchi,I (2725) Danzhou 2016}) 11. e4 {[%emt 0:01:39]} dxe4 {[%emt 0:02:05] LiveBook: 3 Games} 12. Nxe4 {[%emt 0:00:59]} c5 {[%emt 0:03:42]} 13. d5 $146 {[%emt 0:01:01]} ({Predecessor:} 13. Nxf6+ Bxf6 14. d5 Qc7 15. Rfe1 Rfe8 16. Re3 Rcd8 17. Rae1 Qb8 18. h4 {1-0 (31) Banusz,T (2596)-Kummer,H (2331) Austria 2014}) 13... Nxe4 {[%emt 0:06:59]} 14. Bxg7 {[%emt 0:00:07]} Kxg7 {[%emt 0:00:06]} 15. Qxe4 {[%emt 0:00:07]} e6 {[%emt 0:01:10]} 16. Qd3 {[%emt 0:08:10]} exd5 {[%emt 0:02:57]} 17. cxd5 {[%emt 0:00:06]} Nf6 {[%emt 0:02:48]} 18. Qc3 {[%emt 0:03:27]} Qxd5 {[%emt 0:13:02]} (18... Qd6 $11) 19. Nh4 {[%emt 0:01:09]} Qd7 {[%emt 0:00:11]} 20. Bxb7 $2 {[%emt 0:00:12]} (20. Rad1 $16 {keeps the pressure on.} Qc7 21. g4 (21. Bxb7 Qxb7 22. g4 Qe4 $11)) 20... Qxb7 {[%emt 0:00:08]} 21. f4 {[%emt 0:03:01]} Qe4 {[%emt 0:16:53]} 22. Rad1 {[%emt 0:00:12]} Rcd8 {[%emt 0:00:48]} 23. Nf3 {[%emt 0:06:44]} Rfe8 {[%emt 0:04:36]} 24. Ng5 {[%emt 0:06:13]} Qb4 {[%emt 0:14:36]} 25. Qb2 {[%emt 0:02:12] [#]} Rxd1 $1 {[%emt 0:11:52]} 26. Rxd1 {[%emt 0:00:05]} c4 {[%emt 0:00:28]} 27. Nf3 {[%emt 0:06:56]} Qc5+ {[%emt 0:03:45]} 28. Kg2 $2 {[%emt 0:01:01]} (28. Qf2 {nothing else works.}) 28... c3 {[%emt 0:01:19]} 29. Qc2 {[%emt 0:00:07]} Nd5 $2 {[%emt 0:00:42]} (29... Ng4 30. b4 Ne3+ 31. Kg1 Qc4) 30. Rxd5 {[%emt 0:00:28]} Qxd5 {[%emt 0:00:06]} 31. Qxc3+ {[%emt 0:00:04]} Kg8 {[%emt 0:00:12]} 32. Kf2 {[%emt 0:03:30]} Qe4 {[%emt 0:00:46]} 33. Ne5 {[%emt 0:00:44]} Qf5 {[%emt 0:01:41]} 34. Kf3 {[%emt 0:05:09]} Rc8 {[%emt 0:00:58]} 35. Qd4 {[%emt 0:00:29]} Qh5+ {[%emt 0:00:48]} 36. g4 {[%emt 0:04:50]} (36. Ng4 $142) 36... Qh3+ {[%emt 0:00:35]} 37. Ke2 {[%emt 0:00:57]} Rc2+ {[%emt 0:00:41]} 38. Kd1 {[%emt 0:00:05]} Rxa2 $19 {[%emt 0:00:25]} (38... Qxh2 $142 39. Qe3 Rxa2 40. Nd3 Qc2+ 41. Ke1 Ra1+ 42. Nc1 Rxc1+ 43. Qxc1 Qxc1+ 44. Ke2 Qxf4 45. g5 Qxg5 46. Kd3 Qg4 47. Kd2 h5 48. b4 Qxb4+ 49. Ke3 h4 50. Kf2 Qd2+ 51. Kf3 Qe1 52. Kf4 Qe2 53. Kg5 Qf2 54. Kh6 Qf4#) 39. Qc4 {[%emt 0:01:47]} Ra1+ {[%emt 0:02:00]} 40. Ke2 {[%emt 0:01:26]} Qf1+ {[%emt 0:01:05]} 41. Ke3 {[%emt 0:00:21]} Re1+ {[%emt 0:00:49]} 42. Kd2 {[%emt 0:00:38]} Qf2+ {[%emt 0:01:27]} 43. Kd3 {[%emt 0:00:15]} Re3+ {[%emt 0:00:08]} 44. Kd4 {[%emt 0:00:08]} Qxf4+ {[%emt 0:00:06]} 0-1

[Event "XVII Profigaia Open 2017"]
[Site "Gaia"]
[Date "2017.06.17"]
[Round "6"]
[White "Figueiredo, Bruno"]
[Black "Andrade, Nuno Filipe"]
[Result "1/2-1/2"]
[ECO "A06"]
[WhiteElo "1914"]
[BlackElo "1765"]
[Annotator "NA RC"]
[PlyCount "52"]
[EventDate "2017.??.??"]
[EventType "swiss"]
[EventCountry "POR"]
[SourceTitle "playchess.com"]
[Source "ChessBase"]
[SourceQuality "1"]
[TimeControl "5400+30"]

{[%evp 9,48,26,32767,32767,32767,32767,32767,32767,32767,32767,6,0,0,12,32767,32767,32767,32767,32767,32767,8,0,-7,0,18,0,9,0,44,52,57,62,50,58,47,51,57,32767,0,-84,-45]} 1. Nf3 {[%emt 0:18:18]} d5 {[%emt 0:00:18]} 2. g3 {[%emt 0:00:19]} Nf6 {[%emt 0:00:08]} 3. Bg2 {[%emt 0:00:04]} g6 {[%emt 0:00:05]} 4. O-O {[%emt 0:00:05]} Bg7 {[%emt 0:00:34]} 5. d4 {[%emt 0:00:05]} O-O {[%emt 0:00:05]} 6. Ne5 {[%emt 0:00:08]} Nbd7 {[%emt 0:01:13]} 7. c4 {[%emt 0:00:19]} c6 {[%emt 0:02:55]} 8. Nc3 {[%emt 0:00:26] D78: Fianchetto Grünfeld: 6 0-0 c6} Nb6 {[%emt 0:02:02]} (8... Nxe5 9. dxe5 Ne4 10. cxd5 Nxc3 11. bxc3 cxd5 12. f4 Be6 13. Be3 f6 14. Qb3 fxe5 15. Rad1 Qc7 16. Bxd5 Bxd5 17. Rxd5 Kh8 18. fxe5 Rxf1+ 19. Kxf1 e6 {½-½ (37) Kramnik,V (2810)-Ding,L (2764) Novi Sad 2016}) 9. b3 {[%emt 0:02:01]} Ng4 {[%emt 0:01:32]} 10. Nxg4 {[%emt 0:01:03]} Bxg4 {[%emt 0:01:11]} 11. cxd5 {[%emt 0:00:27]} Nxd5 {[%emt 0:00:35]} 12. Nxd5 {[%emt 0:00:16]} cxd5 {[%emt 0:00:09]} 13. h3 $146 {[%emt 0:00:57]} ({Predecessor:} 13. Qd2 Qb6 14. e3 Rfd8 15. Ba3 Bf6 16. Rfc1 {1-0 (30) Merkesvik,S (2263)-Garberg,T (1989) Helsingor 2016}) 13... Bf5 {[%emt 0:00:22]} 14. g4 {[%emt 0:00:06]} Be6 {[%emt 0:05:45]} 15. Ba3 {[%emt 0:03:38]} Qd7 {[%emt 0:00:37]} 16. Qd3 {[%emt 0:04:15]} Rfe8 {[%emt 0:07:53]} 17. Rac1 {[%emt 0:07:49]} (17. f4 $5 {[%cal Rf4f5]} f6 18. f5 gxf5 19. gxf5 $11) 17... Rac8 {[%emt 0:00:06]} 18. f4 {[%emt 0:03:25]} f5 {[%emt 0:02:49]} 19. g5 {[%emt 0:03:27]} Bf8 {[%emt 0:05:09]} 20. h4 {[%emt 0:02:32]} Rxc1 {[%emt 0:00:54]} 21. Rxc1 {[%emt 0:00:28]} Rc8 {[%emt 0:00:05]} 22. Rxc8 {[%emt 0:14:06]} Qxc8 {[%emt 0:00:09]} 23. Qb5 {[%emt 0:01:31]} Qc3 {[%emt 0:06:29]} 24. Qxb7 {[%emt 0:17:04]} (24. Bf3 $11) 24... Qe1+ $15 {[%emt 0:02:14]} (24... Qxd4+ $17 25. Kf1 Qxf4+ 26. Bf3 Kf7 27. Qxa7 Qxh4) 25. Bf1 {[%emt 0:00:17]} Qg3+ {[%emt 0:00:08]} 26. Bg2 {[%emt 0:00:05]} Qe1+ 1/2-1/2

[Event "XVII Profigaia Open 2017"]
[Site "Gaia"]
[Date "2017.06.17"]
[Round "6"]
[White "Da Silva Junior, Antonio Gomes"]
[Black "Da Silva, Pedro Vieira Prado"]
[Result "0-1"]
[ECO "B23"]
[WhiteElo "1846"]
[BlackElo "1521"]
[Annotator "NA RC"]
[PlyCount "109"]
[EventDate "2017.??.??"]
[EventType "swiss"]
[EventCountry "POR"]
[SourceTitle "playchess.com"]
[Source "ChessBase"]
[SourceQuality "1"]
[TimeControl "5400+30"]

{[%evp 13,109,-31,32767,-22,0,-12,0,-415,-420,-407,-419,-427,32767,32767,32767,32767,-439,-433,-198,-218,-145,-125,0,-102,-100,-284,-278,-285,-279,-306,-275,-282,-290,-371,-382,-369,-336,32767,32767,-364,-392,-400,-408,32767,-501,-482,-432,32767,-478,-792,-460,-452,-524,-479,-524,-820,-503,-455,-539,-568,-527,32767,-718,-841,-980,-774,-1119,-1185,-1370,-802,-1027,-1152,-1700,-1385,-1335,-938,-1713,-1554,-1327,-1500,-1827,-1300,32767,32767,32767,32767,-1158,32767,-29970,32767,-29983,-29983,32767,-29993,-29994,-29994,-29991,-29991]} 1. e4 {[%emt 0:01:32]} c5 {[%emt 0:00:03]} 2. Nc3 {[%emt 0:01:00]} e6 {[%emt 0:00:04]} 3. Bc4 {[%emt 0:02:19]} Nc6 {[%emt 0:00:24]} 4. Nf3 {[%emt 0:01:25]} Nf6 {[%emt 0:00:12]} 5. d3 {[%emt 0:01:37]} d5 {[%emt 0:01:20]} 6. exd5 {[%emt 0:01:32] B30: Sicilian: 2...Nc6 3 Bb5, lines without ...g6} (6. Bb5 Be7 7. Ne5 Qb6 8. O-O O-O 9. Bxc6 bxc6 10. Bf4 Ne8 11. Na4 Qa6 12. b3 f6 13. Nf3 e5 {0-1 (42) Onem,C (2283)-Fekih,B (2360) ICCF email 2006}) 6... exd5 {[%emt 0:00:07]} 7. Bb5 {[%emt 0:01:41]} d4 {[%emt 0:03:43]} 8. Qe2+ {[%emt 0:04:27]} (8. Bxc6+ $5 bxc6 9. Qe2+ Qe7 10. Qxe7+ Bxe7 11. Na4 $11) 8... Be7 {[%emt 0:01:59]} 9. Ne4 {[%emt 0:00:33]} Nxe4 $146 {[%emt 0:00:58]} ({Much weaker is} 9... Qa5+ $6 10. Bd2 $16) ({Predecessor:} 9... O-O 10. O-O Bd7 11. Nxf6+ Bxf6 12. Re1 Re8 13. Qd1 Qc7 {0-1 (75) Goellner,S (924)-Lorenz,N (1219) Winterberg 2002}) 10. Qxe4 $4 {[%emt 0:00:56]} (10. Bxc6+ $15 bxc6 11. Qxe4) 10... Qa5+ {[%emt 0:00:09]} 11. Bd2 {[%emt 0:03:44]} Qxb5 {[%emt 0:00:08]} 12. b3 {[%emt 0:00:37]} Nb4 {[%emt 0:04:43]} 13. Bxb4 {[%emt 0:00:29]} Qxb4+ {[%emt 0:00:08]} 14. Nd2 {[%emt 0:00:18]} Qc3 {[%emt 0:01:08]} 15. Rc1 Qb2 (15... Qa5 $142 16. f4 Qc7) 16. O-O {[%emt 0:05:37]} Qxa2 {[%emt 0:05:16]} 17. Rfe1 {[%emt 0:01:20]} Be6 {[%emt 0:01:42]} 18. Qxb7 {[%emt 0:01:25]} Rd8 {[%emt 0:01:21]} 19. Qc6+ $2 {[%emt 0:01:00]} (19. Nc4 $1 $11) 19... Kf8 {[%emt 0:04:12]} 20. Qc7 {[%emt 0:09:51]} Rc8 {[%emt 0:03:13]} 21. Qb7 {[%emt 0:00:41]} Qa3 {[%emt 0:04:46]} 22. Ra1 {[%emt 0:01:53]} Qb4 {[%emt 0:00:38]} 23. Qxb4 {[%emt 0:02:35]} cxb4 {[%emt 0:00:11]} 24. Nc4 {[%emt 0:02:06]} Bxc4 {[%emt 0:00:51]} 25. bxc4 {[%emt 0:00:21]} Bc5 {[%emt 0:00:18]} 26. Kf1 {[%emt 0:04:01]} f6 {[%emt 0:03:56]} 27. Ra6 {[%emt 0:02:31]} Kf7 {[%emt 0:01:59]} 28. Ree6 {[%emt 0:02:40]} Rhe8 {[%emt 0:04:21]} 29. Rxe8 (29. Rec6) 29... Rxe8 30. Rc6 {[%emt 0:03:06]} Re5 {[%emt 0:04:00]} 31. g3 {[%emt 0:02:34]} (31. f4 $142 Rf5 32. Ke2) 31... a5 {[%emt 0:02:45]} 32. f4 {[%emt 0:01:00]} Rf5 {[%emt 0:01:13]} 33. Kf2 {[%emt 0:00:40]} Be7 {[%emt 0:05:58]} 34. h4 {[%emt 0:01:35]} Rc5 {[%emt 0:01:54]} 35. Ra6 {[%emt 0:00:21]} g5 {[%emt 0:04:42]} 36. hxg5 {[%emt 0:01:07]} fxg5 {[%emt 0:00:08]} 37. Rh6 {[%emt 0:02:42]} a4 {[%emt 0:02:40]} 38. Rxh7+ {[%emt 0:00:50]} Ke6 {[%emt 0:01:57]} 39. Rh6+ {[%emt 0:01:14]} Bf6 {[%emt 0:00:10]} 40. fxg5 {[%emt 0:00:56]} Rxg5 {[%emt 0:00:14]} 41. Rh1 {[%emt 0:01:27]} a3 {[%emt 0:01:26]} 42. Kf3 {[%emt 0:02:23]} Rf5+ {[%emt 0:01:14]} 43. Kg2 {[%emt 0:00:55]} Re5 {[%emt 0:02:43]} 44. Kf2 {[%emt 0:00:45]} Bg5 {[%emt 0:00:50]} 45. Kf3 {[%emt 0:01:04]} Re3+ {[%emt 0:00:49]} 46. Kf2 {[%emt 0:00:41] [#]} b3 $1 {[%emt 0:02:32]} 47. cxb3 {[%emt 0:00:22]} Rxd3 {[%emt 0:00:05]} 48. c5 {[%emt 0:00:35]} Rxb3 {[%emt 0:01:29]} 49. Ra1 {[%emt 0:00:27]} Rb2+ {[%emt 0:01:06]} 50. Kf3 d3 51. Rxa3 {[%emt 0:01:39]} d2 {[%emt 0:00:48]} 52. Ke2 {[%emt 0:00:31]} Kd5 {[%emt 0:03:03]} 53. Ra5 {[%emt 0:06:33]} Rb1 {[%emt 0:00:34]} 54. c6+ Kxc6 55. Ra6+ {Kd6 Kd1+} 0-1

[Event "XVII Profigaia Open 2017"]
[Site "Gaia"]
[Date "2017.06.17"]
[Round "6"]
[White "Catarro, Jose Joao Dias"]
[Black "Margarido, Jose Miguel Teixeir"]
[Result "1/2-1/2"]
[ECO "A00"]
[WhiteElo "1833"]
[BlackElo "2038"]
[Annotator "NA RC"]
[PlyCount "140"]
[EventDate "2017.??.??"]
[EventType "swiss"]
[EventCountry "POR"]
[SourceTitle "playchess.com"]
[Source "ChessBase"]
[SourceQuality "1"]
[TimeControl "5400+30"]

{[%evp 10,140,4,-13,32767,32767,-11,-14,32767,-15,8,-5,0,-20,-11,-15,-19,-15,-15,-45,32767,-59,-3,-30,0,0,0,0,7,0,14,-2,26,0,24,16,19,17,15,-5,0,-39,18,25,10,-28,-21,-24,-12,-63,32767,-13,32767,32767,11,10,8,0,0,0,-5,0,32767,32767,32767,0,84,32767,32767,32767,32767,32767,18,0,0,-29,5,0,0,0,0,0,0,0,0,0,0,0,0,32767,32767,32767,32767,0,0,0,0,0,0,0,0,0,0,0,0,0,0,0,0,0,0,32767,32767,32767,32767,0,0,0,0,0,0,0,0,0,0,0,0,0,0,0,0,0,0]} 1. b4 {[%emt 0:00:00]} e5 {[%emt 0:01:43]} 2. Bb2 {[%emt 0:00:00]} Bxb4 {[%emt 0:01:07]} 3. Bxe5 {[%emt 0:00:00]} Nf6 {[%emt 0:00:03]} 4. e3 {[%emt 0:00:09]} Nc6 {[%emt 0:00:20]} 5. Bc3 {[%emt 0:01:03] A00: Irregular Openings} (5. Bb2 d5 6. Nf3 O-O 7. c4 Re8 8. cxd5 Nxd5 9. Be2 Qe7 10. O-O Bf5 11. a3 Ba5 12. Qa4 a6 13. Nd4 Nxd4 14. Qxd4 Nf6 15. Qf4 Bg6 {0-1 (54) Hecht,H (2336)-Spornberger,M (2303) Austria 2014}) 5... O-O {[%emt 0:01:08]} 6. Nf3 {[%emt 0:00:03]} d5 {[%emt 0:01:53]} 7. Be2 {[%emt 0:00:16]} Bd6 {[%emt 0:18:55]} 8. Bb2 $146 {[%emt 0:03:23]} ({Predecessor:} 8. d3 Re8 9. O-O Ng4 10. h3 Nge5 11. Re1 Qf6 12. Nh2 Qh4 {0-1 (65) Larios Villa,F (1973)-Gella Lopez,A (2132) Spain 2006}) 8... Qe7 {[%emt 0:05:06]} 9. O-O {[%emt 0:03:35]} Ne5 {[%emt 0:04:02]} 10. Bxe5 {[%emt 0:05:40]} Bxe5 {[%emt 0:00:06]} 11. d4 {[%emt 0:00:14]} Bd6 {[%emt 0:00:01]} 12. Nbd2 {[%emt 0:00:20]} (12. c4 $5 {[%cal Rc4c5]} c6 13. Nc3 $11) 12... c6 {[%emt 0:05:00]} 13. c4 {[%emt 0:02:27]} Bf5 {[%emt 0:01:41]} 14. Re1 {[%emt 0:08:18]} Rad8 {[%emt 0:02:07]} 15. a4 {[%emt 0:01:32]} Rfe8 {[%emt 0:01:31]} 16. Qb3 {[%emt 0:02:30]} dxc4 {[%emt 0:07:07]} 17. Bxc4 {[%emt 0:01:19]} Ne4 {[%emt 0:02:22]} 18. Nf1 {[%emt 0:03:44]} Bb8 {[%emt 0:05:32]} 19. a5 {[%emt 0:04:42]} Bc8 {[%emt 0:07:59]} 20. Rab1 {[%emt 0:03:02]} Bd6 {[%emt 0:08:40]} 21. Bd3 {[%emt 0:01:07]} h6 {[%emt 0:05:43]} 22. Ng3 {[%emt 0:05:10]} Nxg3 {[%emt 0:02:04]} 23. hxg3 {[%emt 0:00:20]} a6 {[%emt 0:02:03]} 24. Nd2 {[%emt 0:09:34]} Bc7 {[%emt 0:00:42]} 25. Nc4 {[%emt 0:01:30]} Rd5 {[%emt 0:08:59]} (25... h5 $15) 26. Nb6 {[%emt 0:01:02]} Bxb6 $1 {[%emt 0:00:23]} 27. axb6 {[%emt 0:00:47]} Be6 {[%emt 0:02:01]} 28. Qc3 {[%emt 0:04:15]} Qd8 {[%emt 0:00:45]} 29. Red1 {[%emt 0:01:44]} Re7 {[%emt 0:01:50]} 30. Be2 {[%emt 0:02:56]} Bf5 {[%emt 0:01:31]} 31. Rb2 {[%emt 0:00:36]} Be4 {[%emt 0:01:22]} (31... c5 $5) 32. f3 {[%emt 0:00:30]} Bg6 {[%emt 0:00:12]} 33. Kf2 {[%emt 0:00:30]} c5 {[%emt 0:02:07]} 34. Bc4 {[%emt 0:04:28]} cxd4 {[%emt 0:00:34]} 35. Rxd4 {[%emt 0:01:19]} Rxd4 {[%emt 0:00:06]} 36. exd4 {[%emt 0:00:41]} Rd7 {[%emt 0:00:19]} 37. d5 {[%emt 0:01:08]} (37. Bxa6 $5 Kh8 38. Rb4 $14) 37... Rd6 {[%emt 0:00:17]} (37... Kh7 $11 {remains equal.}) 38. Qb4 {[%emt 0:02:36]} f6 {[%emt 0:00:01]} 39. Qc5 {[%emt 0:02:14]} Bf7 {[%emt 0:00:44]} 40. Qc7 {[%emt 0:00:36]} Rd7 {[%emt 0:00:36]} 41. Qxd8+ {[%emt 0:00:43]} Rxd8 {[%emt 0:00:00]} 42. Rd2 {[%emt 0:00:21]} Rd6 {[%emt 0:01:34]} (42... Kf8 $1 $15) 43. Bxa6 {[%emt 0:00:59]} bxa6 {[%emt 0:01:11]} 44. b7 {[%emt 0:00:01]} Rb6 $1 {[%emt 0:00:19]} 45. d6 {[%emt 0:00:31]} Be6 {[%emt 0:00:35]} 46. d7 Bxd7 $1 47. Rxd7 {[%emt 0:00:43]} Kh7 $1 {[%emt 0:00:02]} 48. Rd6 {[%emt 0:00:36]} Rxb7 {[%emt 0:00:39]} 49. Rxa6 {[%emt 0:00:11]} Rb2+ {[%emt 0:00:02]} 50. Kg1 {[%emt 0:00:15]} Kg6 {[%emt 0:00:00]} 51. Ra7 {[%emt 0:02:54]} Rc2 {[%emt 0:00:10]} 52. g4 {[%emt 0:00:23]} Kh7 {[%emt 0:00:30]} 53. Kh2 {[%emt 0:00:07]} Rc5 {[%emt 0:00:23]} 54. Kg3 {[%emt 0:00:14]} Rc2 {[%emt 0:01:32]} 55. Re7 {[%emt 0:00:20]} Ra2 {[%emt 0:00:01]} 56. Rd7 {[%emt 0:00:21]} Rc2 {[%emt 0:00:03]} 57. Ra7 {[%emt 0:00:15]} Rc5 {[%emt 0:00:15]} 58. Rf7 {[%emt 0:00:31]} h5 {[%emt 0:00:08]} (58... Kg6 $5 {[%cal Rg6f7]} 59. Rb7 Rc2 $11) 59. gxh5 {[%emt 0:01:05]} Rxh5 {[%emt 0:00:01]} 60. Ra7 {[%emt 0:00:22]} Rb5 {[%emt 0:00:02]} 61. Re7 {[%emt 0:00:14]} Kh6 {[%emt 0:00:10]} 62. Re6 {[%emt 0:01:43]} Kg5 {[%emt 0:00:29]} 63. Re7 {[%emt 0:00:48]} g6 {[%emt 0:00:18]} 64. Rh7 {[%emt 0:01:30]} Rb1 {[%emt 0:00:25]} 65. Rc7 {[%emt 0:00:26]} Rb5 {[%emt 0:00:28]} 66. Rc4 {[%emt 0:00:31]} Kf5 {[%emt 0:00:16]} 67. Re4 {[%emt 0:00:32]} g5 {[%emt 0:00:17]} 68. Re7 {[%emt 0:01:07]} Ra5 {[%emt 0:00:12]} 69. Re4 {[%emt 0:00:24]} Rb5 $11 {[%emt 0:00:06]} 70. Re7 {[%emt 0:00:09]} Ra5 {[%emt 0:00:33]} 1/2-1/2

[Event "XVII Profigaia Open 2017"]
[Site "Gaia"]
[Date "2017.06.17"]
[Round "6"]
[White "Andrade, Ricardo Sarmento"]
[Black "Santos, Ricardo"]
[Result "0-1"]
[ECO "C54"]
[WhiteElo "1754"]
[BlackElo "2088"]
[Annotator "NA RC"]
[PlyCount "86"]
[EventDate "2017.??.??"]
[EventType "swiss"]
[EventCountry "POR"]
[SourceTitle "playchess.com"]
[Source "ChessBase"]
[SourceQuality "1"]
[TimeControl "5400+30"]

{[%evp 19,82,18,32767,32767,32767,32767,32767,22,32,15,61,64,54,73,60,67,70,-21,0,-193,-200,-195,-196,-184,-176,-194,-175,-182,-181,-176,-184,-185,-181,-209,-181,-198,32767,-220,-206,-247,-265,-274,-274,-276,-264,-264,-287,32767,32767,32767,-237,-231,-259,-257,-267,-276,-263,-265,-256,-265,-268,-237,-220,-366,-477]} 1. e4 {[%emt 0:00:00]} e5 {[%emt 0:00:11]} 2. Nf3 {[%emt 0:00:00]} Nc6 {[%emt 0:00:03]} 3. Bc4 {[%emt 0:00:00]} Bc5 {[%emt 0:00:05]} 4. c3 {[%emt 0:00:00]} Nf6 {[%emt 0:00:09]} 5. d3 {[%emt 0:00:00]} a6 {[%emt 0:00:14]} 6. Bb3 {[%emt 0:00:00]} d6 {[%emt 0:00:10]} 7. h3 {[%emt 0:00:10] C54: Giuoco Piano: 4 c3 Nf6, main lines with 5 d4 and 5 d3} (7. Nbd2 O-O 8. O-O Re8 9. Re1 Be6 10. h3 h6 11. Nc4 Ba7 12. Be3 b5 13. Ncd2 Bxe3 14. Rxe3 d5 15. Re1 dxe4 16. dxe4 {0-1 (70) Ivanchuk,V (2710)-Dominguez Perez,L (2732) Huaian 2016}) 7... O-O {[%emt 0:00:06]} 8. Bg5 {[%emt 0:00:30]} Re8 {[%emt 0:00:37]} 9. Nbd2 {[%emt 0:01:12]} Be6 {[%emt 0:00:22]} 10. O-O {[%emt 0:03:07]} h6 {[%emt 0:00:06]} 11. Bh4 {[%emt 0:00:06]} Bxb3 {[%emt 0:04:23]} 12. axb3 {[%emt 0:01:26]} g5 $146 {[%emt 0:03:14]} ({Predecessor:} 12... Re6 13. Re1 g5 14. Bxg5 hxg5 15. Nxg5 {½-½ (26) Rios,C (2409)-Castro Rojas,O (2369) Santa Rosa 2011}) 13. Bg3 {[%emt 0:01:16]} Nh5 {[%emt 0:00:21]} 14. Kh2 {[%emt 0:03:03]} Nf4 {[%emt 0:00:56]} 15. Bxf4 {[%emt 0:01:41]} gxf4 {[%emt 0:00:13]} 16. g3 {[%emt 0:01:29]} Qf6 $1 {[%emt 0:00:32]} 17. Nh4 {[%emt 0:00:32]} Ne7 {[%emt 0:03:56]} 18. Qg4+ {[%emt 0:09:25]} (18. Ng2 $14) 18... Kh7 {[%emt 0:00:38]} 19. Ndf3 $2 {[%emt 0:00:36]} (19. Qf3 $11) 19... Rg8 {[%emt 0:00:34]} 20. Qh5 {[%emt 0:00:17] [#]} Bxf2 $1 {[%emt 0:00:33]} 21. g4 {[%emt 0:06:31]} Bg3+ {[%emt 0:02:07]} 22. Kh1 {[%emt 0:00:27]} Bxh4 {[%emt 0:04:48]} 23. Qxh4 {[%emt 0:00:14]} Qxh4 {[%emt 0:06:43]} 24. Nxh4 {[%emt 0:00:03] [#]} h5 $1 {[%emt 0:00:53]} 25. Rg1 {[%emt 0:02:52]} hxg4 {[%emt 0:00:56]} 26. Rxg4 {[%emt 0:03:47]} Rxg4 {[%emt 0:02:43]} 27. hxg4 {[%emt 0:00:02]} Rh8 {[%emt 0:04:12]} 28. Kg2 {[%emt 0:07:33]} Kg7 {[%emt 0:00:11]} 29. Nf3 {[%emt 0:01:47]} Ng6 {[%emt 0:00:07]} 30. Rh1 {[%emt 0:00:16]} Rxh1 {[%emt 0:00:05]} 31. Kxh1 {[%emt 0:00:04]} Nf8 {[%emt 0:05:09]} 32. Kg2 {[%emt 0:00:14]} Ne6 {[%emt 0:02:12]} 33. d4 {[%emt 0:03:15]} exd4 {[%emt 0:00:13]} 34. cxd4 {[%emt 0:00:04]} Kg6 {[%emt 0:05:31]} 35. b4 {[%emt 0:02:00]} Ng5 {[%emt 0:00:53]} 36. Nd2 {[%emt 0:00:39]} Kf6 {[%emt 0:00:23]} 37. Kf2 {[%emt 0:01:07]} b6 {[%emt 0:05:01]} 38. Ke2 {[%emt 0:01:12]} Ne6 {[%emt 0:03:45]} 39. Nf3 {[%emt 0:04:08]} c5 {[%emt 0:00:07]} 40. bxc5 {[%emt 0:00:50]} bxc5 {[%emt 0:00:06]} 41. dxc5 {[%emt 0:09:13]} Nxc5 $19 {[%emt 0:00:17]} 42. Nd2 {[%emt 0:01:33]} Kg5 {[%emt 0:00:05]} 43. Kf3 {[%emt 0:00:01]} Nd3 {[%emt 0:00:07]} 0-1

[Event "XVII Profigaia Open 2017"]
[Site "Gaia"]
[Date "2017.06.17"]
[Round "6"]
[White "Fernandes, Claudio Micael Sous"]
[Black "Alves, Damiao Fernando"]
[Result "1-0"]
[ECO "C44"]
[WhiteElo "1661"]
[BlackElo "1368"]
[Annotator "NA RC"]
[PlyCount "67"]
[EventDate "2017.??.??"]
[EventType "swiss"]
[EventCountry "POR"]
[SourceTitle "playchess.com"]
[Source "ChessBase"]
[SourceQuality "1"]
[TimeControl "5400+30"]

1. e4 {[%emt 0:00:00]} e5 {[%emt 0:00:58]} 2. Nf3 {[%emt 0:00:00]} Nc6 {[%emt 0:00:39]} 3. d4 {[%emt 0:00:02]} exd4 {[%emt 0:03:11]} 4. Bc4 {[%emt 0:00:04]} Bc5 {[%emt 0:06:10]} 5. O-O {[%emt 0:00:09]} d6 {[%emt 0:00:47]} 6. c3 {[%emt 0:01:15]} d3 {[%emt 0:01:40]} 7. Qxd3 {[%emt 0:00:17]} Nge7 {[%emt 0:07:46]} 8. a4 {[%emt 0:01:05]} a6 {[%emt 0:01:08]} 9. Na3 {[%emt 0:02:05]} O-O {[%emt 0:01:52]} 10. Nc2 {[%emt 0:00:03]} Bg4 {[%emt 0:01:49]} 11. Nfd4 {[%emt 0:00:34]} Ne5 {[%emt 0:01:58]} 12. Qg3 {[%emt 0:00:53]} Bh5 {[%emt 0:07:28]} 13. Bb3 {[%emt 0:00:51]} Ba7 {[%emt 0:02:09]} 14. Ne3 {[%emt 0:00:43]} Bg6 {[%emt 0:04:31]} 15. f4 {[%emt 0:00:17]} Nd3 {[%emt 0:05:44]} 16. f5 {[%emt 0:00:09]} Bxd4 {[%emt 0:08:38]} 17. cxd4 {[%emt 0:00:28]} Bh5 {[%emt 0:01:26]} 18. Ng4 {[%emt 0:01:17]} Nxc1 {[%emt 0:02:26]} 19. Raxc1 {[%emt 0:00:43]} Bxg4 {[%emt 0:01:16]} 20. Qxg4 {[%emt 0:00:01]} d5 {[%emt 0:03:09]} 21. Rc3 {[%emt 0:01:48]} f6 {[%emt 0:04:32]} 22. Rg3 {[%emt 0:00:19]} Rf7 {[%emt 0:00:36]} 23. e5 {[%emt 0:00:02]} g6 {[%emt 0:01:46]} 24. fxg6 {[%emt 0:00:43]} Nxg6 {[%emt 0:03:11]} 25. Bc2 {[%emt 0:01:18]} Kf8 {[%emt 0:06:08]} 26. Bxg6 {[%emt 0:01:03]} hxg6 {[%emt 0:00:09]} 27. Qxg6 {[%emt 0:00:04]} Ke8 {[%emt 0:03:10]} 28. e6 {[%emt 0:00:10]} Qe7 {[%emt 0:01:30]} 29. exf7+ {[%emt 0:00:03]} Kd7 {[%emt 0:01:21]} 30. Qf5+ {[%emt 0:00:23]} Qe6 {[%emt 0:02:05]} 31. f8=N+ {[%emt 0:00:25]} Rxf8 {[%emt 0:00:21]} 32. Rg7+ {[%emt 0:00:07]} Kd6 {[%emt 0:00:43]} 33. Qf4+ {[%emt 0:00:02]} Kc6 {[%emt 0:00:24]} 34. Qxc7# {[%emt 0:00:03]} 1-0